[Event "Open NK Rapid 2025"]
[Site "Helmond, Netherlands"]
[Date "2025.05.03"]
[Round "2.9"]
[White "Messaoudi, Nino"]
[Black "Roebers, Eline"]
[Result "0-1"]
[TimeControl "15+5"]
[WhiteFideId "1099930"]
[BlackFideId "1058401"]
[WhiteElo "1875"]
[BlackElo "2390"]

1. d4 {[%clk 00:15:08]} f5 {[%clk 00:15:09]} {[%emt 00:00:02]} 2. Nc3 {[%clk
00:15:09]} {[%emt 00:00:04]} Nf6 {[%clk 00:15:13]} {[%emt 00:00:01]} 3. Bg5
{[%clk 00:15:12]} {[%emt 00:00:02]} d5 {[%clk 00:15:18]} 4. Bxf6 {[%clk
00:15:06]} {[%emt 00:00:11]} exf6 {[%clk 00:15:22]} {[%emt 00:00:01]} 5. e3
{[%clk 00:15:06]} {[%emt 00:00:05]} Be6 {[%clk 00:15:26]} {[%emt 00:00:01]} 6.
Bd3 {[%clk 00:15:02]} {[%emt 00:00:09]} Qd7 {[%clk 00:15:30]} 7. Nge2 {[%clk
00:14:46]} {[%emt 00:00:21]} Nc6 {[%clk 00:15:34]} {[%emt 00:00:01]} 8. a3
{[%clk 00:14:27]} {[%emt 00:00:24]} O-O-O {[%clk 00:15:35]} {[%emt 00:00:03]} 9.
Qd2 {[%clk 00:13:53]} {[%emt 00:00:39]} Kb8 {[%clk 00:15:38]} {[%emt 00:00:02]}
10. O-O-O {[%clk 00:13:55]} {[%emt 00:00:03]} h5 {[%clk 00:15:26]} {[%emt
00:00:17]} 11. Na4 {[%clk 00:12:31]} {[%emt 00:01:30]} Qe8 {[%clk 00:13:46]}
{[%emt 00:01:45]} 12. Nc5 {[%clk 00:12:00]} {[%emt 00:00:36]} Bc8 {[%clk
00:13:49]} {[%emt 00:00:02]} 13. Bb5 {[%clk 00:11:00]} {[%emt 00:01:05]} a6
{[%clk 00:13:31]} {[%emt 00:00:24]} 14. Ba4 {[%clk 00:10:46]} {[%emt 00:00:18]}
b6 {[%clk 00:12:28]} {[%emt 00:01:07]} 15. Nd3 {[%clk 00:10:13]} {[%emt
00:00:38]} Bd7 {[%clk 00:12:02]} {[%emt 00:00:31]} 16. h4 {[%clk 00:09:14]}
{[%emt 00:01:04]} g6 {[%clk 00:10:47]} {[%emt 00:01:21]} 17. Kb1 {[%clk
00:09:13]} {[%emt 00:00:05]} Ne7 {[%clk 00:09:19]} {[%emt 00:01:33]} 18. Bxd7
{[%clk 00:09:08]} {[%emt 00:00:10]} Rxd7 {[%clk 00:08:59]} {[%emt 00:00:26]} 19.
Rc1 {[%clk 00:09:00]} {[%emt 00:00:13]} Nc8 {[%clk 00:08:42]} {[%emt 00:00:21]}
20. c4 {[%clk 00:08:06]} {[%emt 00:01:00]} dxc4 {[%clk 00:08:46]} 21. Rxc4
{[%clk 00:08:08]} {[%emt 00:00:02]} Nd6 {[%clk 00:08:50]} {[%emt 00:00:01]} 22.
Rc2 {[%clk 00:07:43]} {[%emt 00:00:31]} Ne4 {[%clk 00:08:54]} {[%emt 00:00:01]}
23. Qc1 {[%clk 00:07:20]} {[%emt 00:00:27]} Rhh7 {[%clk 00:08:31]} {[%emt
00:00:28]} 24. Nc3 {[%clk 00:05:59]} {[%emt 00:01:27]} Bh6 {[%clk 00:08:17]}
{[%emt 00:00:18]} 25. Qe1 {[%clk 00:04:46]} {[%emt 00:01:18]} a5 {[%clk
00:07:48]} {[%emt 00:00:35]} 26. g3 {[%clk 00:03:27]} {[%emt 00:01:24]} Rhe7
{[%clk 00:07:38]} {[%emt 00:00:15]} 27. Nxe4 {[%clk 00:03:14]} {[%emt
00:00:18]} Rxe4 {[%clk 00:06:57]} {[%emt 00:00:45]} 28. Qc3 {[%clk 00:03:10]}
{[%emt 00:00:10]} Bf8 {[%clk 00:06:42]} {[%emt 00:00:19]} 29. Rhc1 {[%clk
00:03:02]} {[%emt 00:00:13]} Bd6 {[%clk 00:06:15]} {[%emt 00:00:33]} 30. Qb3
{[%clk 00:02:50]} {[%emt 00:00:16]} Ka7 {[%clk 00:04:54]} {[%emt 00:01:26]} 31.
Rc6 {[%clk 00:02:00]} {[%emt 00:00:55]} g5 {[%clk 00:04:49]} {[%emt 00:00:10]}
32. hxg5 {[%clk 00:01:22]} {[%emt 00:00:42]} fxg5 {[%clk 00:04:53]} {[%emt
00:00:02]} 33. Qb5 {[%clk 00:01:26]} Rf7 {[%clk 00:02:32]} {[%emt 00:02:27]} 34.
Nc5 {[%clk 00:01:13]} {[%emt 00:00:18]} Bxc5 {[%clk 00:02:35]} {[%emt
00:00:02]} 35. dxc5 {[%clk 00:01:12]} {[%emt 00:00:05]} Qb8 {[%clk 00:02:32]}
{[%emt 00:00:08]} 36. cxb6+ {[%clk 00:00:44]} {[%emt 00:00:34]} cxb6 {[%clk
00:02:36]} 37. Rd1 {[%clk 00:00:17]} {[%emt 00:00:31]} Re5 {[%clk 00:02:13]}
{[%emt 00:00:29]} 38. Qc4 {[%clk 00:00:16]} {[%emt 00:00:05]} Ree7 {[%clk
00:01:33]} {[%emt 00:00:46]} 39. Rdd6 {[%clk 00:00:18]} {[%emt 00:00:03]} Rc7
{[%clk 00:01:19]} {[%emt 00:00:20]} 40. Qb5 {[%clk 00:00:09]} {[%emt 00:00:13]}
Rxc6 {[%clk 00:01:18]} {[%emt 00:00:06]} 41. Rxc6 {[%clk 00:00:12]} {[%emt
00:00:02]} Qd8 {[%clk 00:00:56]} {[%emt 00:00:26]} 42. Qc4 {[%clk 00:00:15]}
{[%emt 00:00:03]} Rd7 {[%clk 00:00:28]} {[%emt 00:00:34]} 43. Rc8 {[%clk
00:00:17]} {[%emt 00:00:02]} Rd1+ {[%clk 00:00:20]} {[%emt 00:00:12]} 44. Ka2
{[%clk 00:00:21]} {[%emt 00:00:02]} Qd5 {[%clk 00:00:24]} 45. Qxd5 {[%clk
00:00:11]} {[%emt 00:00:16]} Rxd5 {[%clk 00:00:28]} 46. Rc2 {[%clk 00:00:10]}
{[%emt 00:00:05]} Kb7 {[%clk 00:00:21]} {[%emt 00:00:13]} 47. Kb3 {[%clk
00:00:14]} {[%emt 00:00:01]} f4 {[%clk 00:00:12]} {[%emt 00:00:13]} 48. exf4
{[%clk 00:00:16]} {[%emt 00:00:03]} gxf4 {[%clk 00:00:17]} 49. gxf4 {[%clk
00:00:18]} {[%emt 00:00:03]} Rf5 {[%clk 00:00:21]} 50. Re2 {[%clk 00:00:08]}
{[%emt 00:00:15]} Rxf4 {[%clk 00:00:24]} {[%emt 00:00:02]} 51. Kc3 {[%clk
00:00:11]} {[%emt 00:00:02]} h4 {[%clk 00:00:23]} {[%emt 00:00:05]} 52. Kd3
{[%clk 00:00:07]} {[%emt 00:00:09]} h3 {[%clk 00:00:27]} 53. Ke3 {[%clk
00:00:08]} {[%emt 00:00:05]} 0-1

[Event "Open NK Rapid 2025"]
[Site "Helmond, Netherlands"]
[Date "2025.05.03"]
[Round "2.10"]
[White "Cernov, Vadim"]
[Black "Pol, Nico"]
[Result "1-0"]
[TimeControl "15+5"]
[WhiteFideId "1210629"]
[BlackFideId "1064002"]
[WhiteElo "2320"]
[BlackElo "1878"]

1. e4 {[%clk 00:15:09]} d5 {[%clk 00:15:07]} {[%emt 00:00:03]} 2. exd5 {[%clk
00:15:12]} {[%emt 00:00:02]} Qxd5 {[%clk 00:14:51]} {[%emt 00:00:20]} 3. Nc3
{[%clk 00:15:16]} Qa5 {[%clk 00:14:55]} {[%emt 00:00:01]} 4. d4 {[%clk
00:15:20]} {[%emt 00:00:01]} e5 {[%clk 00:14:59]} {[%emt 00:00:01]} 5. Nf3
{[%clk 00:15:20]} {[%emt 00:00:04]} Bg4 {[%clk 00:15:00]} {[%emt 00:00:05]} 6.
Bb5+ {[%clk 00:15:12]} {[%emt 00:00:13]} c6 {[%clk 00:14:12]} {[%emt 00:00:53]}
7. Be2 {[%clk 00:15:14]} {[%emt 00:00:03]} Bxf3 {[%clk 00:13:14]} {[%emt
00:01:03]} 8. Bxf3 {[%clk 00:15:16]} {[%emt 00:00:03]} exd4 {[%clk 00:12:35]}
{[%emt 00:00:45]} 9. Qxd4 {[%clk 00:15:16]} {[%emt 00:00:04]} Nd7 {[%clk
00:12:32]} {[%emt 00:00:08]} 10. O-O {[%clk 00:14:58]} {[%emt 00:00:23]} O-O-O
{[%clk 00:12:32]} {[%emt 00:00:06]} 11. Bf4 {[%clk 00:14:30]} {[%emt 00:00:32]}
Ndf6 {[%clk 00:11:39]} {[%emt 00:00:58]} 12. Qc4 {[%clk 00:14:06]} {[%emt
00:00:29]} Ne7 {[%clk 00:08:34]} {[%emt 00:03:11]} 13. Qxf7 {[%clk 00:12:58]}
{[%emt 00:01:12]} Qf5 {[%clk 00:08:02]} {[%emt 00:00:37]} 14. Bg3 {[%clk
00:12:22]} {[%emt 00:00:41]} Rd7 {[%clk 00:05:42]} {[%emt 00:02:25]} 15. Qc4
{[%clk 00:10:30]} {[%emt 00:01:57]} h5 {[%clk 00:03:35]} {[%emt 00:02:12]} 16.
Rad1 {[%clk 00:08:16]} {[%emt 00:02:19]} g5 {[%clk 00:02:58]} {[%emt 00:00:42]}
17. Rxd7 {[%clk 00:07:46]} {[%emt 00:00:35]} Nxd7 {[%clk 00:03:01]} {[%emt
00:00:02]} 18. Re1 {[%clk 00:06:28]} {[%emt 00:01:23]} Qc5 {[%clk 00:01:42]}
{[%emt 00:01:24]} 19. Qf7 {[%emt 00:02:56]} Qf5 {[%emt 00:00:02]} 20. Rf1
{[%clk 00:04:57]} 1-0

[Event "Open NK Rapid 2025"]
[Site "Helmond, Netherlands"]
[Date "2025.05.03"]
[Round "2.11"]
[White "Cernov, Henrik"]
[Black "Zecha, Oscar"]
[Result "1-0"]
[TimeControl "15+5"]
[WhiteFideId "16258312"]
[BlackFideId "1073826"]
[WhiteElo "2291"]
[BlackElo "1873"]

1. e4 {[%clk 00:15:09]} e5 {[%clk 00:15:10]} {[%emt 00:00:01]} 2. Nf3 {[%clk
00:15:09]} {[%emt 00:00:05]} Nc6 {[%clk 00:15:13]} {[%emt 00:00:01]} 3. Bb5
{[%clk 00:15:12]} {[%emt 00:00:02]} a6 {[%clk 00:15:06]} {[%emt 00:00:12]} 4.
Bxc6 {[%clk 00:14:59]} {[%emt 00:00:18]} dxc6 {[%clk 00:15:08]} {[%emt
00:00:03]} 5. Nc3 {[%clk 00:15:03]} {[%emt 00:00:02]} Qf6 {[%clk 00:14:37]}
{[%emt 00:00:36]} 6. d4 {[%clk 00:15:06]} {[%emt 00:00:02]} exd4 {[%clk
00:13:47]} {[%emt 00:00:54]} 7. Bg5 {[%clk 00:15:11]} {[%emt 00:00:01]} Qg6
{[%clk 00:12:39]} {[%emt 00:01:13]} 8. Qxd4 {[%clk 00:15:14]} {[%emt 00:00:01]}
Be7 {[%clk 00:12:38]} {[%emt 00:00:07]} 9. Bxe7 {[%clk 00:14:27]} {[%emt
00:00:52]} Nxe7 {[%clk 00:12:41]} {[%emt 00:00:01]} 10. O-O-O {[%clk 00:14:31]}
{[%emt 00:00:02]} O-O {[%clk 00:11:56]} {[%emt 00:00:50]} 11. h4 {[%clk
00:13:59]} {[%emt 00:00:36]} Bg4 {[%clk 00:11:46]} {[%emt 00:00:15]} 12. Qe3
{[%clk 00:12:36]} {[%emt 00:01:28]} Bxf3 {[%clk 00:11:27]} {[%emt 00:00:24]} 13.
gxf3 {[%clk 00:12:37]} {[%emt 00:00:04]} Qh6 {[%clk 00:10:35]} {[%emt
00:00:57]} 14. Qxh6 {[%clk 00:11:41]} {[%emt 00:01:01]} gxh6 {[%clk 00:10:39]}
{[%emt 00:00:02]} 15. Rd7 {[%clk 00:11:45]} {[%emt 00:00:01]} Ng6 {[%clk
00:10:04]} {[%emt 00:00:39]} 16. Rxc7 {[%clk 00:11:34]} {[%emt 00:00:17]} Rab8
{[%clk 00:09:46]} {[%emt 00:00:23]} 17. Ne2 {[%clk 00:09:42]} {[%emt 00:01:56]}
Rfc8 {[%clk 00:09:26]} {[%emt 00:00:25]} 18. Rxc8+ {[%clk 00:09:24]} {[%emt
00:00:24]} Rxc8 {[%clk 00:09:30]} 19. h5 {[%clk 00:08:38]} {[%emt 00:00:52]}
Ne5 {[%clk 00:08:51]} {[%emt 00:00:44]} 20. f4 {[%clk 00:08:34]} {[%emt
00:00:09]} Nc4 {[%clk 00:08:55]} {[%emt 00:00:01]} 21. Ng3 {[%clk 00:08:05]}
{[%emt 00:00:33]} Rd8 {[%clk 00:08:44]} {[%emt 00:00:17]} 22. b3 {[%clk
00:08:02]} {[%emt 00:00:08]} Nb6 {[%clk 00:06:18]} {[%emt 00:02:31]} 23. Nf5
{[%clk 00:07:59]} {[%emt 00:00:07]} Nd7 {[%clk 00:05:39]} {[%emt 00:00:44]} 24.
Rd1 {[%clk 00:07:03]} {[%emt 00:01:02]} Kf8 {[%clk 00:05:06]} {[%emt 00:00:38]}
25. Nxh6 {[%clk 00:07:01]} {[%emt 00:00:06]} Ke8 {[%clk 00:05:07]} {[%emt
00:00:04]} 26. e5 {[%clk 00:05:57]} {[%emt 00:01:10]} f6 {[%clk 00:04:02]}
{[%emt 00:01:10]} 27. Nf5 {[%clk 00:05:09]} {[%emt 00:00:52]} fxe5 {[%clk
00:03:34]} {[%emt 00:00:33]} 28. fxe5 {[%clk 00:05:12]} {[%emt 00:00:02]} Nxe5
{[%clk 00:03:24]} {[%emt 00:00:15]} 29. Re1 {[%clk 00:05:14]} {[%emt 00:00:03]}
Kf7 {[%clk 00:02:38]} {[%emt 00:00:51]} 30. Rxe5 {[%clk 00:05:17]} {[%emt
00:00:02]} Kf6 {[%clk 00:02:32]} {[%emt 00:00:11]} 31. f4 {[%clk 00:05:20]}
{[%emt 00:00:02]} Rg8 {[%clk 00:01:26]} {[%emt 00:01:11]} 32. Ne3 {[%clk
00:04:49]} {[%emt 00:00:36]} Rg3 {[%clk 00:01:05]} {[%emt 00:00:26]} 33. Kd2
{[%clk 00:04:02]} {[%emt 00:00:53]} Rf3 {[%clk 00:01:07]} {[%emt 00:00:02]} 34.
Rf5+ {[%clk 00:03:27]} {[%emt 00:00:40]} Ke6 {[%clk 00:01:10]} {[%emt
00:00:02]} 35. Rg5 {[%clk 00:02:26]} {[%emt 00:01:06]} Rxf4 {[%clk 00:00:56]}
{[%emt 00:00:19]} 36. Rg7 {[%clk 00:02:30]} {[%emt 00:00:01]} h6 {[%clk
00:00:32]} {[%emt 00:00:29]} 37. Rh7 {[%clk 00:02:34]} Ke5 {[%clk 00:00:16]}
{[%emt 00:00:21]} 38. Rxh6 {[%clk 00:02:32]} {[%emt 00:00:08]} Ke4 {[%clk
00:00:18]} {[%emt 00:00:03]} 39. Nd1 {[%clk 00:02:00]} {[%emt 00:00:37]} Rh4
{[%clk 00:00:10]} {[%emt 00:00:13]} 40. Nc3+ {[%clk 00:02:01]} {[%emt
00:00:04]} Kd4 {[%clk 00:00:12]} {[%emt 00:00:03]} 41. Ne2+ {[%clk 00:01:59]}
{[%emt 00:00:07]} Kc5 {[%clk 00:00:09]} {[%emt 00:00:08]} 42. Rh7 {[%clk
00:02:01]} {[%emt 00:00:03]} b5 {[%clk 00:00:13]} {[%emt 00:00:01]} 43. c3
{[%clk 00:01:51]} {[%emt 00:00:15]} Rh3 {[%clk 00:00:16]} {[%emt 00:00:02]} 44.
Rh6 {[%clk 00:01:50]} {[%emt 00:00:06]} a5 {[%clk 00:00:16]} {[%emt 00:00:05]}
45. a3 {[%clk 00:01:36]} {[%emt 00:00:19]} a4 {[%clk 00:00:13]} {[%emt
00:00:07]} 46. bxa4 {[%clk 00:00:42]} {[%emt 00:01:00]} bxa4 {[%clk 00:00:17]}
{[%emt 00:00:01]} 47. Nd4 {[%clk 00:00:24]} {[%emt 00:00:23]} Rh2+ {[%clk
00:00:12]} {[%emt 00:00:10]} 48. Kd3 {[%clk 00:00:27]} {[%emt 00:00:02]} Ra2
{[%clk 00:00:13]} {[%emt 00:00:03]} 49. Rxc6+ {[%clk 00:00:28]} {[%emt
00:00:05]} Kd5 {[%clk 00:00:17]} {[%emt 00:00:02]} 50. Ra6 {[%clk 00:00:26]}
{[%emt 00:00:06]} Rxa3 {[%clk 00:00:18]} {[%emt 00:00:04]} 51. Ra5+ {[%clk
00:00:30]} {[%emt 00:00:01]} Kd6 {[%clk 00:00:17]} {[%emt 00:00:06]} 52. Nb5+
{[%clk 00:00:34]} Kd5 {[%clk 00:15:05]} {[%emt 00:00:08]} 1-0

[Event "Open NK Rapid 2025"]
[Site "Helmond, Netherlands"]
[Date "2025.05.03"]
[Round "2.12"]
[White "Baars, Tije"]
[Black "Stolwijk, Colin"]
[Result "0-1"]
[TimeControl "15+5"]
[WhiteFideId "40102157"]
[BlackFideId "1033743"]
[WhiteElo "1870"]
[BlackElo "2286"]

1. d4 {[%clk 00:15:09]} Nf6 {[%clk 00:15:08]} {[%emt 00:00:03]} 2. Nc3 {[%clk
00:15:12]} {[%emt 00:00:01]} d5 {[%clk 00:15:11]} {[%emt 00:00:02]} 3. e4
{[%clk 00:15:16]} {[%emt 00:00:01]} dxe4 {[%clk 00:15:07]} {[%emt 00:00:09]} 4.
Bg5 {[%clk 00:15:19]} {[%emt 00:00:02]} g6 {[%clk 00:14:48]} {[%emt 00:00:23]}
5. Bxf6 {[%clk 00:15:12]} {[%emt 00:00:13]} exf6 {[%clk 00:14:51]} {[%emt
00:00:01]} 6. Nxe4 {[%clk 00:15:14]} {[%emt 00:00:03]} Bg7 {[%clk 00:14:53]}
{[%emt 00:00:03]} 7. Nf3 {[%clk 00:14:27]} {[%emt 00:00:52]} Bg4 {[%clk
00:14:27]} {[%emt 00:00:31]} 8. Be2 {[%clk 00:11:01]} {[%emt 00:03:31]} f5
{[%clk 00:13:33]} {[%emt 00:00:59]} 9. Nc5 {[%clk 00:10:47]} {[%emt 00:00:19]}
b6 {[%clk 00:13:16]} {[%emt 00:00:23]} 10. Nb3 {[%clk 00:10:50]} {[%emt
00:00:02]} O-O {[%clk 00:12:13]} {[%emt 00:01:08]} 11. O-O {[%clk 00:10:48]}
{[%emt 00:00:06]} Nd7 {[%clk 00:11:38]} {[%emt 00:00:41]} 12. h3 {[%clk
00:10:21]} {[%emt 00:00:32]} Bh5 {[%clk 00:11:41]} {[%emt 00:00:01]} 13. c3
{[%clk 00:10:20]} {[%emt 00:00:06]} a5 {[%clk 00:11:24]} {[%emt 00:00:23]} 14.
Qc2 {[%clk 00:10:07]} {[%emt 00:00:16]} a4 {[%clk 00:11:15]} {[%emt 00:00:16]}
15. Nc1 {[%clk 00:10:11]} {[%emt 00:00:01]} c5 {[%clk 00:10:23]} {[%emt
00:01:01]} 16. Rd1 {[%clk 00:08:44]} {[%emt 00:01:27]} cxd4 {[%clk 00:10:06]}
{[%emt 00:00:23]} 17. Nxd4 {[%clk 00:08:46]} {[%emt 00:00:03]} Bxe2 {[%clk
00:09:24]} {[%emt 00:00:47]} 18. Ncxe2 {[%clk 00:08:40]} {[%emt 00:00:10]} Qc8
{[%clk 00:09:24]} {[%emt 00:00:05]} 19. Nf3 {[%clk 00:06:48]} {[%emt 00:01:57]}
Nc5 {[%clk 00:09:14]} {[%emt 00:00:16]} 20. Rd6 {[%clk 00:06:23]} {[%emt
00:00:28]} Ne4 {[%clk 00:08:30]} {[%emt 00:00:50]} 21. Rd3 {[%clk 00:04:42]}
{[%emt 00:01:46]} a3 {[%clk 00:08:27]} {[%emt 00:00:09]} 22. b3 {[%clk
00:04:29]} {[%emt 00:00:17]} Qc5 {[%clk 00:08:30]} {[%emt 00:00:02]} 23. Nfd4
{[%clk 00:03:48]} {[%emt 00:00:46]} Rfd8 {[%clk 00:08:15]} {[%emt 00:00:20]} 24.
b4 {[%clk 00:03:23]} {[%emt 00:00:31]} Qc4 {[%clk 00:08:01]} {[%emt 00:00:18]}
25. f3 {[%clk 00:02:59]} {[%emt 00:00:30]} Nf6 {[%clk 00:07:52]} {[%emt
00:00:14]} 26. Rad1 {[%clk 00:02:30]} {[%emt 00:00:33]} Re8 {[%clk 00:07:23]}
{[%emt 00:00:33]} 27. Nb3 {[%clk 00:02:10]} {[%emt 00:00:26]} h5 {[%clk
00:06:08]} {[%emt 00:01:20]} 28. Nec1 {[%clk 00:01:07]} {[%emt 00:01:09]} Rac8
{[%clk 00:05:52]} {[%emt 00:00:20]} 29. Ne2 {[%clk 00:00:57]} {[%emt 00:00:15]}
Qxb4 {[%clk 00:05:21]} {[%emt 00:00:36]} 30. Rd4 {[%clk 00:00:43]} {[%emt
00:00:20]} Qb5 {[%clk 00:05:23]} {[%emt 00:00:02]} 31. c4 {[%clk 00:00:33]}
{[%emt 00:00:16]} Qe5 {[%clk 00:05:15]} {[%emt 00:00:13]} 32. Kf1 {[%clk
00:00:17]} {[%emt 00:00:20]} Qh2 {[%clk 00:04:45]} {[%emt 00:00:35]} 33. Kf2
{[%clk 00:00:15]} {[%emt 00:00:06]} Bh6 {[%clk 00:04:28]} {[%emt 00:00:23]} 34.
Ng3 {[%clk 00:00:15]} {[%emt 00:00:05]} Be3+ {[%clk 00:04:27]} {[%emt
00:00:06]} 0-1

[Event "Open NK Rapid 2025"]
[Site "Helmond, Netherlands"]
[Date "2025.05.03"]
[Round "2.13"]
[White "Kuipers-Haast, Anne"]
[Black "Winter, Sven"]
[Result "1-0"]
[TimeControl "15+5"]
[WhiteFideId "1017292"]
[BlackFideId "1092375"]
[WhiteElo "2272"]
[BlackElo "1869"]

1. e4 {[%clk 00:15:08]} {[%emt 00:00:02]} d6 {[%clk 00:15:09]} {[%emt
00:00:01]} 2. d4 {[%clk 00:15:10]} {[%emt 00:00:03]} Nf6 {[%clk 00:15:12]}
{[%emt 00:00:02]} 3. Nc3 {[%clk 00:15:14]} {[%emt 00:00:01]} g6 {[%clk
00:15:16]} {[%emt 00:00:01]} 4. Nf3 {[%clk 00:14:40]} {[%emt 00:00:40]} Bg7
{[%clk 00:15:19]} {[%emt 00:00:01]} 5. h3 {[%clk 00:14:36]} {[%emt 00:00:08]}
O-O {[%clk 00:15:16]} {[%emt 00:00:08]} 6. Be3 {[%clk 00:14:37]} {[%emt
00:00:05]} Nc6 {[%clk 00:15:08]} {[%emt 00:00:13]} 7. Qd2 {[%clk 00:14:34]}
{[%emt 00:00:08]} e5 {[%clk 00:15:06]} {[%emt 00:00:07]} 8. O-O-O {[%clk
00:14:25]} {[%emt 00:00:14]} exd4 {[%clk 00:15:01]} {[%emt 00:00:10]} 9. Nxd4
{[%clk 00:14:27]} {[%emt 00:00:04]} Re8 {[%clk 00:14:51]} {[%emt 00:00:14]} 10.
f3 {[%clk 00:13:16]} {[%emt 00:01:16]} d5 {[%clk 00:14:47]} {[%emt 00:00:09]}
11. Nxc6 {[%clk 00:12:09]} {[%emt 00:01:12]} bxc6 {[%clk 00:14:49]} {[%emt
00:00:03]} 12. Bg5 {[%clk 00:12:09]} {[%emt 00:00:06]} Bb7 {[%clk 00:14:31]}
{[%emt 00:00:23]} 13. Qf4 {[%clk 00:11:44]} {[%emt 00:00:30]} h6 {[%clk
00:14:21]} {[%emt 00:00:14]} 14. Bxh6 {[%clk 00:11:01]} {[%emt 00:00:48]} Nh5
{[%clk 00:14:24]} {[%emt 00:00:02]} 15. Qd2 {[%clk 00:10:45]} {[%emt 00:00:21]}
Ng3 {[%clk 00:13:28]} {[%emt 00:01:00]} 16. Bxg7 {[%clk 00:10:40]} {[%emt
00:00:12]} Kxg7 {[%clk 00:12:39]} {[%emt 00:00:53]} 17. Qd4+ {[%clk 00:10:35]}
{[%emt 00:00:10]} Qf6 {[%clk 00:12:33]} {[%emt 00:00:11]} 18. Rg1 {[%clk
00:10:23]} {[%emt 00:00:17]} dxe4 {[%clk 00:12:16]} {[%emt 00:00:22]} 19. Qxf6+
{[%clk 00:09:05]} {[%emt 00:01:24]} Kxf6 {[%clk 00:12:19]} {[%emt 00:00:01]} 20.
fxe4 {[%clk 00:08:17]} {[%emt 00:00:54]} Nxe4 {[%clk 00:12:21]} {[%emt
00:00:02]} 21. Bc4 {[%clk 00:08:01]} {[%emt 00:00:21]} Nd6 {[%clk 00:12:16]}
{[%emt 00:00:10]} 22. Bb3 {[%clk 00:07:53]} {[%emt 00:00:13]} c5 {[%clk
00:10:31]} {[%emt 00:01:50]} 23. Bd5 {[%clk 00:07:49]} {[%emt 00:00:09]} Rab8
{[%clk 00:09:58]} {[%emt 00:00:39]} 24. Bxb7 {[%clk 00:07:26]} {[%emt
00:00:27]} Rxb7 {[%clk 00:10:00]} {[%emt 00:00:03]} 25. Nd5+ {[%clk 00:07:30]}
{[%emt 00:00:01]} Kg7 {[%clk 00:09:35]} {[%emt 00:00:30]} 26. Nxc7 {[%clk
00:07:24]} {[%emt 00:00:11]} Rxc7 {[%clk 00:08:58]} {[%emt 00:00:42]} 27. Rxd6
{[%clk 00:07:28]} {[%emt 00:00:01]} Re2 {[%clk 00:09:01]} {[%emt 00:00:02]} 28.
Kd1 {[%clk 00:07:07]} {[%emt 00:00:26]} Rf2 {[%clk 00:08:41]} {[%emt 00:00:25]}
29. Rd2 {[%clk 00:07:01]} {[%emt 00:00:11]} Rf4 {[%clk 00:08:16]} {[%emt
00:00:29]} 30. c3 {[%clk 00:06:46]} {[%emt 00:00:21]} Rb7 {[%clk 00:07:26]}
{[%emt 00:00:55]} 31. Kc2 {[%clk 00:06:42]} {[%emt 00:00:09]} Ra4 {[%clk
00:06:31]} {[%emt 00:01:00]} 32. a3 {[%clk 00:06:36]} {[%emt 00:00:12]} Ra5
{[%clk 00:05:12]} {[%emt 00:01:23]} 33. Rd5 {[%clk 00:05:32]} {[%emt 00:01:09]}
Rab5 {[%clk 00:04:17]} {[%emt 00:01:00]} 34. b4 {[%clk 00:05:36]} {[%emt
00:00:01]} cxb4 {[%clk 00:03:55]} {[%emt 00:00:27]} 35. Rxb5 {[%clk 00:05:40]}
Rxb5 {[%clk 00:03:58]} {[%emt 00:00:02]} 36. axb4 {[%clk 00:05:35]} {[%emt
00:00:10]} a5 {[%clk 00:04:01]} {[%emt 00:00:02]} 37. Kb3 {[%clk 00:05:38]}
{[%emt 00:00:02]} axb4 {[%clk 00:04:02]} {[%emt 00:00:05]} 38. cxb4 {[%clk
00:05:42]} {[%emt 00:00:01]} Rb8 {[%clk 00:03:33]} {[%emt 00:00:33]} 39. Rc1
{[%clk 00:05:41]} {[%emt 00:00:06]} f5 {[%clk 00:03:32]} {[%emt 00:00:06]} 40.
Rc6 {[%clk 00:05:34]} {[%emt 00:00:12]} Ra8 {[%clk 00:02:46]} {[%emt 00:00:51]}
41. b5 {[%clk 00:05:32]} {[%emt 00:00:08]} Ra1 {[%clk 00:02:47]} {[%emt
00:00:03]} 42. Rc2 {[%clk 00:04:53]} {[%emt 00:00:44]} Kf7 {[%clk 00:02:16]}
{[%emt 00:00:36]} 43. b6 {[%clk 00:04:23]} {[%emt 00:00:35]} Ra6 {[%clk
00:02:17]} {[%emt 00:00:04]} 44. Rc6 {[%clk 00:04:20]} {[%emt 00:00:08]} Ra1
{[%clk 00:01:58]} {[%emt 00:00:24]} 45. Kb2 {[%clk 00:03:59]} {[%emt 00:00:27]}
Ra5 {[%clk 00:01:53]} {[%emt 00:00:09]} 46. Rc3 {[%clk 00:03:58]} {[%emt
00:00:06]} Ra8 {[%clk 00:01:31]} {[%emt 00:00:27]} 47. b7 {[%clk 00:03:57]}
{[%emt 00:00:06]} Rb8 {[%clk 00:01:33]} {[%emt 00:00:03]} 48. Rb3 {[%clk
00:04:00]} {[%emt 00:00:02]} Ke7 {[%clk 00:01:14]} {[%emt 00:00:24]} 49. Kc3
{[%clk 00:04:01]} {[%emt 00:00:04]} Kd6 {[%clk 00:00:46]} {[%emt 00:00:33]} 50.
Kd4 {[%clk 00:04:03]} {[%emt 00:00:03]} g5 {[%clk 00:00:38]} {[%emt 00:00:14]}
51. Rb2 {[%clk 00:03:44]} {[%emt 00:00:24]} g4 {[%clk 00:00:34]} {[%emt
00:00:08]} 52. hxg4 {[%clk 00:03:46]} {[%emt 00:00:03]} fxg4 {[%clk 00:00:37]}
{[%emt 00:00:02]} 53. Ke4 {[%clk 00:03:49]} {[%emt 00:00:02]} g3 {[%clk
00:00:39]} {[%emt 00:00:03]} 54. Kf4 {[%clk 00:03:50]} {[%emt 00:00:05]} Rf8+
{[%clk 00:00:41]} {[%emt 00:00:03]} 55. Kxg3 {[%clk 00:03:53]} {[%emt
00:00:02]} Rg8+ {[%clk 00:00:43]} {[%emt 00:00:03]} 56. Kf4 {[%clk 00:03:38]}
{[%emt 00:00:19]} Rb8 {[%clk 00:00:37]} {[%emt 00:00:11]} 57. Kf5 {[%clk
00:03:24]} {[%emt 00:00:19]} Kc7 {[%clk 00:00:35]} {[%emt 00:00:07]} 58. Ke6
{[%clk 00:02:41]} {[%emt 00:00:48]} Re8+ {[%clk 00:00:22]} {[%emt 00:00:19]} 59.
Kf7 {[%clk 00:02:41]} {[%emt 00:00:05]} Rd8 {[%clk 00:00:14]} {[%emt 00:00:13]}
60. b8=Q+ {[%clk 00:02:36]} {[%emt 00:00:10]} 1-0